[Event "GrandPrix_29.05"]
[Site "Chess.com"]
[Date "2020.05.29"]
[Round "2"]
[White "Gannikus21"]
[Black "szachuspl"]
[Result "0-1"]
[WhiteElo "1982"]
[BlackElo "2290"]
[TimeControl "600+2"]
[EndTime "9:44:21 PDT"]
[Termination "szachuspl won by resignation"]

1. e4 {[%clk 0:10:01.9]} 1... c5 {[%clk 0:09:56.3]} 2. Nf3 {[%clk 0:10:02.5]}
2... e6 {[%clk 0:09:56.7]} 3. d4 {[%clk 0:10:03.4]} 3... cxd4 {[%clk 0:09:57.4]}
4. Nxd4 {[%clk 0:10:05]} 4... Nc6 {[%clk 0:09:58.3]} 5. Nc3 {[%clk 0:10:06.6]}
5... a6 {[%clk 0:09:58.9]} 6. Be2 {[%clk 0:10:05.9]} 6... Nf6 {[%clk 0:09:58.9]}
7. Be3 {[%clk 0:10:05.8]} 7... Bb4 {[%clk 0:09:58.9]} 8. Nxc6 {[%clk 0:10:06.1]}
8... bxc6 {[%clk 0:09:59.8]} 9. Qd3 {[%clk 0:10:07]} 9... d5 {[%clk 0:09:51.3]}
10. e5 {[%clk 0:10:07]} 10... Nd7 {[%clk 0:09:52.1]} 11. f4 {[%clk 0:10:07.9]}
11... Nc5 {[%clk 0:09:29.5]} 12. Bxc5 {[%clk 0:10:03.7]} 12... Bxc5 {[%clk
0:09:30.4]} 13. O-O-O {[%clk 0:10:05.4]} 13... Qa5 {[%clk 0:09:14.8]} 14. Kb1
{[%clk 0:09:57.8]} 14... Rb8 {[%clk 0:09:11]} 15. Ka1 {[%clk 0:09:57.3]} 15...
O-O {[%clk 0:09:10.5]} 16. Rb1 {[%clk 0:09:54.4]} 16... Rb4 {[%clk 0:09:01.6]}
17. Rhf1 {[%clk 0:09:54.9]} 17... Bd7 {[%clk 0:08:36.4]} 18. g4 {[%clk
0:09:48.4]} 18... Rfb8 {[%clk 0:07:20.3]} 19. f5 {[%clk 0:09:46.9]} 19... Qb6
{[%clk 0:07:07.9]} 20. Qxa6 {[%clk 0:09:12]} 20... Qxa6 {[%clk 0:07:01.1]} 21.
Bxa6 {[%clk 0:09:10.7]} 21... Rxg4 {[%clk 0:06:52]} 22. Bd3 {[%clk 0:08:18.4]}
22... Bd4 {[%clk 0:06:41.9]} 23. Rbe1 {[%clk 0:08:02.6]} 23... exf5 {[%clk
0:06:02.2]} 24. Bxf5 {[%clk 0:08:01.7]} 24... Bxf5 {[%clk 0:06:03]} 25. Rxf5
{[%clk 0:08:03.6]} 25... Rg2 {[%clk 0:06:01.5]} 26. Rc1 {[%clk 0:07:34]} 26...
Rxh2 {[%clk 0:05:55.9]} 27. Na4 {[%clk 0:07:33.8]} 27... g6 {[%clk 0:05:48.6]}
28. Rf6 {[%clk 0:07:33.8]} 28... Bxe5 {[%clk 0:05:41]} 29. Rxc6 {[%clk
0:07:33.6]} 29... Rh4 {[%clk 0:05:39.7]} 30. c4 {[%clk 0:07:27.4]} 30... Rh2
{[%clk 0:05:30.3]} 31. cxd5 {[%clk 0:07:24.6]} 31... Bxb2+ {[%clk 0:05:23]} 32.
Nxb2 {[%clk 0:07:25.2]} 32... Rbxb2 {[%clk 0:05:23.9]} 33. Ra6 {[%clk
0:07:26.4]} 33... Rbd2 {[%clk 0:05:19.5]} 34. d6 {[%clk 0:07:27.6]} 34... h5
{[%clk 0:05:13.2]} 0-1

[Event "GrandPrix_29.05"]
[Site "Chess.com"]
[Date "2020.05.29"]
[Round "2"]
[White "kpio91"]
[Black "Kildepiotr"]
[Result "1-0"]
[WhiteElo "2727"]
[BlackElo "2250"]
[TimeControl "600+2"]
[EndTime "9:44:22 PDT"]
[Termination "kpio91 won by resignation"]

1. e4 {[%clk 0:10:01.9]} 1... g6 {[%clk 0:09:57.1]} 2. d4 {[%clk 0:10:02]} 2...
Bg7 {[%clk 0:09:58]} 3. c4 {[%clk 0:10:03.1]} 3... d6 {[%clk 0:09:58.4]} 4. Nc3
{[%clk 0:09:57.7]} 4... Nd7 {[%clk 0:09:59.1]} 5. Be3 {[%clk 0:09:39.4]} 5... e5
{[%clk 0:09:59.5]} 6. Nge2 {[%clk 0:09:21.3]} 6... Ngf6 {[%clk 0:09:47]} 7. f3
{[%clk 0:09:22.1]} 7... O-O {[%clk 0:09:47.2]} 8. d5 {[%clk 0:09:22]} 8... Nh5
{[%clk 0:09:42.8]} 9. Qd2 {[%clk 0:08:58.4]} 9... f5 {[%clk 0:09:42.5]} 10.
O-O-O {[%clk 0:08:59.1]} 10... a6 {[%clk 0:09:35.4]} 11. Kb1 {[%clk 0:08:55.6]}
11... Rb8 {[%clk 0:09:21.6]} 12. exf5 {[%clk 0:07:55.2]} 12... gxf5 {[%clk
0:09:20.9]} 13. Ng3 {[%clk 0:07:56.3]} 13... Ndf6 {[%clk 0:09:16.1]} 14. Nxh5
{[%clk 0:07:50.4]} 14... Nxh5 {[%clk 0:09:16.5]} 15. Bd3 {[%clk 0:07:52]} 15...
Bd7 {[%clk 0:08:58.4]} 16. Bc2 {[%clk 0:07:35.8]} 16... b5 {[%clk 0:08:57.7]}
17. c5 {[%clk 0:07:36.3]} 17... dxc5 {[%clk 0:08:24.8]} 18. Bxc5 {[%clk
0:07:29.4]} 18... Rf6 {[%clk 0:08:18.6]} 19. d6 {[%clk 0:07:27.4]} 19... c6
{[%clk 0:08:10.7]} 20. g4 {[%clk 0:06:32.4]} 20... fxg4 {[%clk 0:07:56.7]} 21.
fxg4 {[%clk 0:06:33.3]} 21... Nf4 {[%clk 0:07:57.5]} 22. Ne4 {[%clk 0:06:25.5]}
22... Rf7 {[%clk 0:07:58]} 23. Rhg1 {[%clk 0:06:19]} 23... Be6 {[%clk
0:07:46.6]} 24. g5 {[%clk 0:06:12.5]} 24... Kh8 {[%clk 0:07:39.5]} 25. h4 {[%clk
0:05:56.5]} 25... Rbb7 {[%clk 0:07:06.6]} 26. h5 {[%clk 0:05:49.6]} 26... Nxh5
{[%clk 0:07:06.9]} 27. g6 {[%clk 0:05:49.9]} 27... hxg6 {[%clk 0:07:02.4]} 28.
Ng5 {[%clk 0:05:27]} 28... Rf6 {[%clk 0:07:03.1]} 29. Nxe6 {[%clk 0:05:08.3]}
29... Rxe6 {[%clk 0:07:03.7]} 30. Bxg6 {[%clk 0:05:09]} 30... Nf4 {[%clk
0:07:03.9]} 31. Qh2+ {[%clk 0:05:07.4]} 31... Kg8 {[%clk 0:07:02.8]} 32. Qh7+
{[%clk 0:05:08.1]} 1-0

[Event "GrandPrix_29.05"]
[Site "Chess.com"]
[Date "2020.05.29"]
[Round "2"]
[White "AmilAbbasov"]
[Black "Karinaa87"]
[Result "1-0"]
[WhiteElo "2223"]
[BlackElo "1941"]
[TimeControl "600+2"]
[EndTime "9:44:26 PDT"]
[Termination "AmilAbbasov won by resignation"]

1. e4 {[%clk 0:10:01.9]} 1... e5 {[%clk 0:09:53.7]} 2. Nf3 {[%clk 0:10:02.4]}
2... Nc6 {[%clk 0:09:40.3]} 3. d4 {[%clk 0:10:02.1]} 3... exd4 {[%clk
0:09:37.8]} 4. Bc4 {[%clk 0:10:02.7]} 4... Nf6 {[%clk 0:09:38.2]} 5. e5 {[%clk
0:10:03.1]} 5... d5 {[%clk 0:09:33.9]} 6. Bb5 {[%clk 0:10:03.5]} 6... Ne4 {[%clk
0:09:34]} 7. Nxd4 {[%clk 0:10:04.1]} 7... Bd7 {[%clk 0:09:31.5]} 8. Bxc6 {[%clk
0:10:03.9]} 8... bxc6 {[%clk 0:09:33.4]} 9. O-O {[%clk 0:10:04.8]} 9... Bc5
{[%clk 0:09:33.1]} 10. f3 {[%clk 0:10:04.9]} 10... Ng5 {[%clk 0:09:32.7]} 11. f4
{[%clk 0:10:05.8]} 11... Ne4 {[%clk 0:09:33.9]} 12. Be3 {[%clk 0:10:06.8]} 12...
Bb6 {[%clk 0:09:30.3]} 13. c3 {[%clk 0:09:17.2]} 13... c5 {[%clk 0:09:17.5]} 14.
Nb3 {[%clk 0:09:14.9]} 14... Bb5 {[%clk 0:08:58.1]} 15. Re1 {[%clk 0:09:12.9]}
15... Bc6 {[%clk 0:08:52.2]} 16. N1d2 {[%clk 0:09:10.4]} 16... Nxd2 {[%clk
0:08:40.1]} 17. Qxd2 {[%clk 0:09:09]} 17... d4 {[%clk 0:08:34.7]} 18. cxd4
{[%clk 0:09:05.6]} 18... c4 {[%clk 0:08:31.5]} 19. Na5 {[%clk 0:08:39.6]} 19...
Bxa5 {[%clk 0:07:45.2]} 20. Qxa5 {[%clk 0:08:38.4]} 20... O-O {[%clk 0:07:37.3]}
21. f5 {[%clk 0:08:31.5]} 21... Qh4 {[%clk 0:07:32.6]} 22. d5 {[%clk 0:07:45.5]}
22... Bb7 {[%clk 0:07:23.7]} 23. Rad1 {[%clk 0:07:44.1]} 23... Rad8 {[%clk
0:07:19.2]} 24. f6 {[%clk 0:06:47.5]} 24... Rxd5 {[%clk 0:07:00.9]} 25. Rxd5
{[%clk 0:06:39.8]} 25... Bxd5 {[%clk 0:06:57.2]} 26. Bf2 {[%clk 0:06:40.7]}
26... Qg5 {[%clk 0:05:38.7]} 27. Qxd5 {[%clk 0:06:39.4]} 27... gxf6 {[%clk
0:05:39.4]} 28. Qxc4 {[%clk 0:06:34.9]} 28... fxe5 {[%clk 0:05:29]} 29. Qxc7
{[%clk 0:06:33.4]} 1-0

[Event "GrandPrix_29.05"]
[Site "Chess.com"]
[Date "2020.05.29"]
[Round "2"]
[White "Man-Chuk"]
[Black "woodhy"]
[Result "0-1"]
[WhiteElo "1882"]
[BlackElo "1958"]
[TimeControl "600+2"]
[EndTime "9:44:47 PDT"]
[Termination "woodhy won by resignation"]

1. d4 {[%clk 0:09:39.7]} 1... Nf6 {[%clk 0:09:59]} 2. Nf3 {[%clk 0:09:39.7]}
2... b6 {[%clk 0:09:59.6]} 3. c4 {[%clk 0:09:39.5]} 3... e6 {[%clk 0:09:58.9]}
4. g3 {[%clk 0:09:32.9]} 4... Bb7 {[%clk 0:09:58.9]} 5. Bg2 {[%clk 0:09:33.7]}
5... Be7 {[%clk 0:10:00.1]} 6. O-O {[%clk 0:09:30.8]} 6... O-O {[%clk
0:10:00.5]} 7. Re1 {[%clk 0:09:29.6]} 7... d5 {[%clk 0:09:55.7]} 8. cxd5 {[%clk
0:09:31.5]} 8... exd5 {[%clk 0:09:56.1]} 9. Nc3 {[%clk 0:09:32.1]} 9... Re8
{[%clk 0:09:55.9]} 10. Bg5 {[%clk 0:09:29.8]} 10... Nbd7 {[%clk 0:09:55.5]} 11.
Ne5 {[%clk 0:09:22.8]} 11... Nxe5 {[%clk 0:08:55.2]} 12. dxe5 {[%clk 0:09:22]}
12... Ne4 {[%clk 0:08:55.6]} 13. Bxe7 {[%clk 0:08:56.7]} 13... Qxe7 {[%clk
0:07:34.6]} 14. f4 {[%clk 0:08:37]} 14... Qc5+ {[%clk 0:07:12.5]} 15. e3 {[%clk
0:08:36.8]} 15... Nxc3 {[%clk 0:07:10.7]} 16. bxc3 {[%clk 0:08:37.1]} 16... Rad8
{[%clk 0:07:07.1]} 17. Qd4 {[%clk 0:08:29.1]} 17... Qa5 {[%clk 0:07:07.2]} 18.
Qb4 {[%clk 0:08:27.9]} 18... Qxb4 {[%clk 0:06:50.6]} 19. cxb4 {[%clk 0:08:29.8]}
19... c5 {[%clk 0:06:51.4]} 20. bxc5 {[%clk 0:08:21.8]} 20... bxc5 {[%clk
0:06:53.3]} 21. Rec1 {[%clk 0:07:53.7]} 21... c4 {[%clk 0:05:42.9]} 22. Rab1
{[%clk 0:07:53.1]} 22... Bc6 {[%clk 0:05:43.3]} 23. e4 {[%clk 0:06:55.8]} 23...
dxe4 {[%clk 0:05:31.7]} 24. Rxc4 {[%clk 0:06:54.1]} 24... Bd5 {[%clk 0:05:30.2]}
25. Ra4 {[%clk 0:06:41.8]} 0-1

[Event "GrandPrix_29.05"]
[Site "Chess.com"]
[Date "2020.05.29"]
[Round "2"]
[White "Inspiration1"]
[Black "Pidzsy"]
[Result "0-1"]
[WhiteElo "1378"]
[BlackElo "2140"]
[TimeControl "600+2"]
[EndTime "9:46:04 PDT"]
[Termination "Pidzsy won by resignation"]

1. d4 {[%clk 0:09:55.5]} 1... g6 {[%clk 0:09:57.2]} 2. e4 {[%clk 0:09:53]} 2...
Bg7 {[%clk 0:09:57.4]} 3. Nc3 {[%clk 0:09:54.5]} 3... d6 {[%clk 0:09:56]} 4. Be3
{[%clk 0:09:54.4]} 4... c6 {[%clk 0:09:57.2]} 5. Qd2 {[%clk 0:09:53.7]} 5... b5
{[%clk 0:09:57.6]} 6. h4 {[%clk 0:09:50.1]} 6... Nf6 {[%clk 0:09:49.3]} 7. f3
{[%clk 0:09:45.1]} 7... Nbd7 {[%clk 0:09:38.8]} 8. Bh6 {[%clk 0:09:37.4]} 8...
Bxh6 {[%clk 0:09:36.1]} 9. Qxh6 {[%clk 0:09:35.3]} 9... Qa5 {[%clk 0:09:32.6]}
10. Ne2 {[%clk 0:09:06.9]} 10... b4 {[%clk 0:09:30.8]} 11. Nd1 {[%clk
0:08:58.1]} 11... b3+ {[%clk 0:09:19.4]} 12. Ndc3 {[%clk 0:08:49]} 12... bxc2
{[%clk 0:09:16.4]} 13. Rc1 {[%clk 0:08:48.4]} 13... Rb8 {[%clk 0:09:13]} 14.
Rxc2 {[%clk 0:08:48]} 14... Ba6 {[%clk 0:09:14.1]} 15. Nc1 {[%clk 0:08:38.5]}
15... Bxf1 {[%clk 0:09:06.3]} 16. Kxf1 {[%clk 0:08:34.4]} 16... c5 {[%clk
0:08:29.7]} 17. d5 {[%clk 0:08:14.8]} 17... Ne5 {[%clk 0:08:23.8]} 18. Kg1
{[%clk 0:06:39.7]} 18... c4 {[%clk 0:08:12.3]} 19. Rh3 {[%clk 0:06:27.9]} 19...
Qc5+ {[%clk 0:08:04.8]} 20. Kh1 {[%clk 0:06:26.3]} 20... Nd3 {[%clk 0:07:53.6]}
21. Nxd3 {[%clk 0:06:21.5]} 21... cxd3 {[%clk 0:07:53.6]} 22. Rd2 {[%clk
0:06:22.9]} 22... Qd4 {[%clk 0:07:38.1]} 23. Nd1 {[%clk 0:05:35.4]} 23... Nh5
{[%clk 0:07:10.6]} 24. g4 {[%clk 0:05:25.9]} 24... Nf6 {[%clk 0:06:56.9]} 25. h5
{[%clk 0:05:26.4]} 25... Rc8 {[%clk 0:06:51.7]} 26. hxg6 {[%clk 0:05:14.2]}
26... fxg6 {[%clk 0:06:43.9]} 27. Qe3 {[%clk 0:05:15.6]} 27... Qc4 {[%clk
0:06:28.2]} 28. b3 {[%clk 0:05:05.3]} 28... Qc1 {[%clk 0:06:19.2]} 29. Qxd3
{[%clk 0:05:02.7]} 29... O-O {[%clk 0:06:13.7]} 30. Rhh2 {[%clk 0:04:44.2]}
30... Nd7 {[%clk 0:06:09.9]} 31. Rc2 {[%clk 0:04:44]} 31... Rxc2 {[%clk
0:06:10]} 32. Rxc2 {[%clk 0:04:44.3]} 32... Qa1 {[%clk 0:05:58.9]} 33. Kg2
{[%clk 0:04:38.1]} 33... Ne5 {[%clk 0:05:56.2]} 34. Qc3 {[%clk 0:04:39.4]} 34...
Qxd1 {[%clk 0:05:55.4]} 0-1

[Event "GrandPrix_29.05"]
[Site "Chess.com"]
[Date "2020.05.29"]
[Round "2"]
[White "Andrjywa"]
[Black "SavelijTartakover"]
[Result "1/2-1/2"]
[WhiteElo "2089"]
[BlackElo "2437"]
[TimeControl "600+2"]
[EndTime "9:46:13 PDT"]
[Termination "Game drawn by agreement"]

1. e4 {[%clk 0:10:01.9]} 1... e6 {[%clk 0:09:59.7]} 2. d4 {[%clk 0:10:02.1]}
2... d5 {[%clk 0:10:00.3]} 3. Nd2 {[%clk 0:10:03.1]} 3... c5 {[%clk 0:10:00.6]}
4. Ngf3 {[%clk 0:10:03.4]} 4... Nc6 {[%clk 0:10:00.7]} 5. exd5 {[%clk
0:10:03.6]} 5... exd5 {[%clk 0:10:01.1]} 6. Bb5 {[%clk 0:10:04.9]} 6... Qe7+
{[%clk 0:10:01.4]} 7. Qe2 {[%clk 0:10:04.1]} 7... Qxe2+ {[%clk 0:10:01]} 8. Bxe2
{[%clk 0:10:01.5]} 8... Bf5 {[%clk 0:09:58.4]} 9. c3 {[%clk 0:09:58.7]} 9...
cxd4 {[%clk 0:09:57.9]} 10. Nxd4 {[%clk 0:09:58.6]} 10... Nxd4 {[%clk
0:09:55.1]} 11. cxd4 {[%clk 0:10:00.5]} 11... Nf6 {[%clk 0:09:00.1]} 12. O-O
{[%clk 0:09:44.7]} 12... Be7 {[%clk 0:08:59.8]} 13. Bb5+ {[%clk 0:09:33.9]}
13... Bd7 {[%clk 0:08:59.6]} 14. Bxd7+ {[%clk 0:09:30]} 14... Nxd7 {[%clk
0:08:53.7]} 15. Re1 {[%clk 0:09:30.5]} 15... f6 {[%clk 0:08:51.6]} 16. Nb3
{[%clk 0:08:21.6]} 16... Kf7 {[%clk 0:08:43.2]} 17. Bf4 {[%clk 0:08:22.8]} 17...
Rhc8 {[%clk 0:08:29]} 18. Rac1 {[%clk 0:08:22.5]} 18... Nf8 {[%clk 0:08:06.4]}
19. Rxc8 {[%clk 0:07:58.5]} 19... Rxc8 {[%clk 0:08:04.9]} 20. Rc1 {[%clk
0:08:00.4]} 20... Rxc1+ {[%clk 0:07:18.8]} 21. Bxc1 {[%clk 0:07:59.5]} 21... Ne6
{[%clk 0:07:10.8]} 22. Kf1 {[%clk 0:07:59.5]} 22... Bd8 {[%clk 0:06:51.7]} 23.
Ke2 {[%clk 0:07:59.1]} 23... Bb6 {[%clk 0:06:50]} 24. Kd3 {[%clk 0:07:59.3]}
24... Ke7 {[%clk 0:06:34.8]} 25. Bd2 {[%clk 0:07:59.7]} 25... Kd7 {[%clk
0:06:29.7]} 26. g3 {[%clk 0:08:00.1]} 26... h5 {[%clk 0:06:26.5]} 27. Ba5 {[%clk
0:06:52.4]} 27... Bxa5 {[%clk 0:05:41.3]} 28. Nxa5 {[%clk 0:06:12.1]} 28... b6
{[%clk 0:05:41.4]} 29. Nb3 {[%clk 0:06:12]} 29... g5 {[%clk 0:05:41.3]} 30. Nd2
{[%clk 0:06:01.4]} 30... Ng7 {[%clk 0:05:30.5]} 31. Nf1 {[%clk 0:05:55.1]} 31...
Nf5 {[%clk 0:05:23.3]} 32. Ne3 {[%clk 0:05:53.7]} 32... Ke6 {[%clk 0:05:24.1]}
33. Nxf5 {[%clk 0:05:52.4]} 33... Kxf5 {[%clk 0:05:24.9]} 34. f3 {[%clk
0:05:41.4]} 34... g4 {[%clk 0:05:11.2]} 35. f4 {[%clk 0:05:32.4]} 35... Ke6
{[%clk 0:05:09.4]} 36. Ke3 {[%clk 0:05:32.4]} 36... Kf5 {[%clk 0:05:10.1]} 37.
Kd3 {[%clk 0:05:33.2]} 37... Ke6 {[%clk 0:05:09.2]} 1/2-1/2

[Event "GrandPrix_29.05"]
[Site "Chess.com"]
[Date "2020.05.29"]
[Round "2"]
[White "sergiochess83"]
[Black "weplaychess09"]
[Result "1-0"]
[WhiteElo "2584"]
[BlackElo "2095"]
[TimeControl "600+2"]
[EndTime "9:46:27 PDT"]
[Termination "sergiochess83 won by resignation"]

1. e4 {[%clk 0:10:01.9]} 1... e5 {[%clk 0:09:59.4]} 2. Nf3 {[%clk 0:10:02.7]}
2... Nc6 {[%clk 0:10:00.6]} 3. Bb5 {[%clk 0:10:04.2]} 3... a6 {[%clk 0:10:01.1]}
4. Ba4 {[%clk 0:10:04.7]} 4... Nf6 {[%clk 0:10:02.2]} 5. O-O {[%clk 0:10:05.5]}
5... Be7 {[%clk 0:10:03.1]} 6. d3 {[%clk 0:10:03.3]} 6... b5 {[%clk 0:10:00]} 7.
Bb3 {[%clk 0:10:04.4]} 7... d6 {[%clk 0:10:00.4]} 8. a3 {[%clk 0:10:03.4]} 8...
Na5 {[%clk 0:09:56.5]} 9. Ba2 {[%clk 0:10:04.1]} 9... c5 {[%clk 0:09:57.7]} 10.
Nc3 {[%clk 0:09:54.7]} 10... O-O {[%clk 0:09:53.2]} 11. Bg5 {[%clk 0:09:04]}
11... Be6 {[%clk 0:09:44.3]} 12. Bxf6 {[%clk 0:09:01.6]} 12... Bxf6 {[%clk
0:09:42.6]} 13. Nd5 {[%clk 0:09:03.2]} 13... Nc6 {[%clk 0:09:28.9]} 14. c3
{[%clk 0:09:03.4]} 14... g6 {[%clk 0:09:23.4]} 15. Qd2 {[%clk 0:08:40]} 15...
Rc8 {[%clk 0:09:04.7]} 16. a4 {[%clk 0:08:28.6]} 16... Bg7 {[%clk 0:08:45.5]}
17. Ng5 {[%clk 0:08:27.9]} 17... Bd7 {[%clk 0:08:17.9]} 18. f4 {[%clk
0:08:24.7]} 18... h6 {[%clk 0:08:13.7]} 19. Nf3 {[%clk 0:08:16.9]} 19... Kh7
{[%clk 0:07:38.3]} 20. f5 {[%clk 0:08:02.9]} 20... gxf5 {[%clk 0:07:03.9]} 21.
exf5 {[%clk 0:08:03.6]} 21... Bxf5 {[%clk 0:06:58.3]} 22. Nxe5 {[%clk 0:07:59]}
22... Be6 {[%clk 0:06:43.4]} 23. Nxc6 {[%clk 0:07:26.6]} 23... Rxc6 {[%clk
0:06:43.6]} 24. Rae1 {[%clk 0:07:25]} 24... Rc8 {[%clk 0:06:14.8]} 25. d4 {[%clk
0:06:12.5]} 25... cxd4 {[%clk 0:06:12.4]} 26. Qd3+ {[%clk 0:06:06]} 26... Kg8
{[%clk 0:06:11.6]} 27. Bb1 {[%clk 0:05:48.5]} 27... Re8 {[%clk 0:05:52.1]} 28.
Qh7+ {[%clk 0:05:35.1]} 28... Kf8 {[%clk 0:05:51.6]} 29. Nf4 {[%clk 0:05:37]}
29... Bf5 {[%clk 0:05:28.5]} 30. Qxf5 {[%clk 0:05:21.5]} 30... Rxe1 {[%clk
0:05:28]} 31. Ng6+ {[%clk 0:05:15.4]} 31... Kg8 {[%clk 0:05:26.1]} 32. Qxf7+
{[%clk 0:05:16.5]} 32... Kh7 {[%clk 0:05:27]} 33. Rxe1 {[%clk 0:05:15.7]} 33...
d3 {[%clk 0:05:16.5]} 34. Bxd3 {[%clk 0:05:13.3]} 34... Qf6 {[%clk 0:05:12.2]}
35. Ne7+ {[%clk 0:05:06.9]} 35... Kh8 {[%clk 0:05:13.1]} 36. Qxf6 {[%clk
0:05:07.9]} 36... Bxf6 {[%clk 0:05:14.3]} 37. Nxc8 {[%clk 0:05:09.5]} 1-0

[Event "GrandPrix_29.05"]
[Site "Chess.com"]
[Date "2020.05.29"]
[Round "2"]
[White "LANCELOT96"]
[Black "Rikikits"]
[Result "0-1"]
[WhiteElo "2268"]
[BlackElo "2744"]
[TimeControl "600+2"]
[EndTime "9:46:32 PDT"]
[Termination "Rikikits won by resignation"]

1. d4 {[%clk 0:10:01.9]} 1... f5 {[%clk 0:10:00.4]} 2. c4 {[%clk 0:10:03.1]}
2... Nf6 {[%clk 0:10:01.1]} 3. Nf3 {[%clk 0:10:03.8]} 3... g6 {[%clk 0:10:02.2]}
4. g3 {[%clk 0:10:05.3]} 4... Bg7 {[%clk 0:10:03.4]} 5. Bg2 {[%clk 0:10:07]}
5... O-O {[%clk 0:10:05.2]} 6. O-O {[%clk 0:10:08.5]} 6... d6 {[%clk 0:10:06.2]}
7. Nc3 {[%clk 0:10:10.2]} 7... Nc6 {[%clk 0:10:07.5]} 8. d5 {[%clk 0:10:11.7]}
8... Ne5 {[%clk 0:10:08.6]} 9. Nxe5 {[%clk 0:10:09.8]} 9... dxe5 {[%clk
0:10:10.5]} 10. e4 {[%clk 0:10:11.3]} 10... f4 {[%clk 0:10:09.4]} 11. c5 {[%clk
0:10:12.7]} 11... g5 {[%clk 0:09:45.8]} 12. b4 {[%clk 0:10:13.3]} 12... Kh8
{[%clk 0:09:38.3]} 13. Rb1 {[%clk 0:10:03.3]} 13... Bg4 {[%clk 0:09:18.6]} 14.
f3 {[%clk 0:10:02.1]} 14... Bd7 {[%clk 0:09:08]} 15. g4 {[%clk 0:09:59.9]} 15...
h5 {[%clk 0:09:06.5]} 16. h3 {[%clk 0:10:01.2]} 16... Nh7 {[%clk 0:08:52.6]} 17.
a4 {[%clk 0:09:58]} 17... Rf6 {[%clk 0:08:51.9]} 18. b5 {[%clk 0:09:58.8]} 18...
b6 {[%clk 0:08:42.9]} 19. Ba3 {[%clk 0:09:42.1]} 19... Rh6 {[%clk 0:08:41.7]}
20. Kf2 {[%clk 0:09:36.3]} 20... a5 {[%clk 0:08:27]} 21. Rh1 {[%clk 0:09:32.7]}
21... Nf8 {[%clk 0:07:37.7]} 22. Rc1 {[%clk 0:09:31.2]} 22... Ng6 {[%clk
0:07:36.5]} 23. Nb1 {[%clk 0:09:31.9]} 23... Nh4 {[%clk 0:07:32.8]} 24. Nd2
{[%clk 0:09:32.9]} 24... Kh7 {[%clk 0:06:33.6]} 25. Nc4 {[%clk 0:09:32.7]} 25...
bxc5 {[%clk 0:06:31.8]} 26. Bxc5 {[%clk 0:09:32.5]} 26... Ng6 {[%clk 0:06:23.2]}
27. Ba3 {[%clk 0:09:29.7]} 27... Nh8 {[%clk 0:06:22.4]} 28. Qd2 {[%clk
0:09:27.8]} 28... Nf7 {[%clk 0:06:18]} 29. Nxa5 {[%clk 0:09:27.9]} 29... c5
{[%clk 0:06:01.7]} 30. Nb7 {[%clk 0:09:10.7]} 30... Qb6 {[%clk 0:05:59.5]} 31.
Nxc5 {[%clk 0:09:10.7]} 31... Rxa4 {[%clk 0:05:59.8]} 32. Qb2 {[%clk 0:08:55]}
32... Ra5 {[%clk 0:05:44.9]} 33. Rc3 {[%clk 0:08:01.5]} 33... Rxb5 {[%clk
0:05:38.6]} 34. Rb3 {[%clk 0:08:02.9]} 34... Nd6 {[%clk 0:05:29.3]} 35. Rb1
{[%clk 0:07:45.8]} 35... hxg4 {[%clk 0:05:20.9]} 36. hxg4 {[%clk 0:07:46.9]}
36... Qa7 {[%clk 0:04:50.4]} 37. Rxb5 {[%clk 0:07:47.7]} 37... Bxb5 {[%clk
0:04:50.4]} 38. Rh1 {[%clk 0:07:35.4]} 38... Rh4 {[%clk 0:04:45]} 39. Rxh4+
{[%clk 0:07:34.3]} 39... gxh4 {[%clk 0:04:46.9]} 40. Kg1 {[%clk 0:07:35.1]}
40... Bf6 {[%clk 0:04:22]} 41. Kh2 {[%clk 0:07:35.7]} 41... Be8 {[%clk
0:03:54.6]} 42. Ne6 {[%clk 0:07:31.9]} 42... Nc4 {[%clk 0:03:51.2]} 43. Qf2
{[%clk 0:07:05.1]} 43... Qxf2 {[%clk 0:03:50.2]} 0-1

[Event "GrandPrix_29.05"]
[Site "Chess.com"]
[Date "2020.05.29"]
[Round "2"]
[White "Lukianoo"]
[Black "ploky25"]
[Result "1-0"]
[WhiteElo "2677"]
[BlackElo "2221"]
[TimeControl "600+2"]
[EndTime "9:46:39 PDT"]
[Termination "Lukianoo won by checkmate"]

1. e4 {[%clk 0:10:01.9]} 1... c5 {[%clk 0:09:59]} 2. Nf3 {[%clk 0:10:00.2]} 2...
e6 {[%clk 0:09:59.2]} 3. c3 {[%clk 0:10:00.5]} 3... d5 {[%clk 0:09:50.7]} 4. e5
{[%clk 0:10:01.1]} 4... d4 {[%clk 0:09:49.4]} 5. Bd3 {[%clk 0:10:02]} 5... Bd7
{[%clk 0:09:29.5]} 6. O-O {[%clk 0:10:01.8]} 6... Bc6 {[%clk 0:09:25]} 7. b4
{[%clk 0:10:02.4]} 7... Nd7 {[%clk 0:09:02.5]} 8. cxd4 {[%clk 0:09:51.2]} 8...
cxd4 {[%clk 0:08:46.7]} 9. Na3 {[%clk 0:09:47.3]} 9... Bxb4 {[%clk 0:08:30]} 10.
Nc4 {[%clk 0:09:47.5]} 10... Ne7 {[%clk 0:07:47]} 11. Rb1 {[%clk 0:09:38.9]}
11... Bc5 {[%clk 0:07:43.1]} 12. Re1 {[%clk 0:09:36.9]} 12... Ng6 {[%clk
0:07:25.9]} 13. Bb2 {[%clk 0:09:32.2]} 13... O-O {[%clk 0:07:11.9]} 14. Nxd4
{[%clk 0:09:21.1]} 14... Ndxe5 {[%clk 0:06:44]} 15. Nxe5 {[%clk 0:08:42.1]}
15... Bxd4 {[%clk 0:06:38.7]} 16. Nxc6 {[%clk 0:08:43]} 16... bxc6 {[%clk
0:06:37]} 17. Be4 {[%clk 0:08:40.8]} 17... Rb8 {[%clk 0:06:10.6]} 18. Bxd4
{[%clk 0:08:35.5]} 18... Rxb1 {[%clk 0:06:07.2]} 19. Qxb1 {[%clk 0:08:33.2]}
19... Qxd4 {[%clk 0:06:07.4]} 20. Bxc6 {[%clk 0:08:34.2]} 20... Qxd2 {[%clk
0:06:02.4]} 21. Rd1 {[%clk 0:08:35.5]} 21... Qa5 {[%clk 0:05:48.9]} 22. Be4
{[%clk 0:08:33.5]} 22... Rd8 {[%clk 0:05:41.3]} 23. Rxd8+ {[%clk 0:08:28.7]}
23... Qxd8 {[%clk 0:05:41]} 24. g3 {[%clk 0:08:30.2]} 24... Nf8 {[%clk 0:05:33]}
25. h4 {[%clk 0:08:27.6]} 25... h5 {[%clk 0:05:16.8]} 26. Kg2 {[%clk 0:08:23.2]}
26... Qd4 {[%clk 0:05:08]} 27. Bf3 {[%clk 0:08:22.9]} 27... g6 {[%clk
0:05:06.1]} 28. Qb7 {[%clk 0:08:21.6]} 28... Kg7 {[%clk 0:04:58.8]} 29. Bc6
{[%clk 0:08:18.9]} 29... Qb6 {[%clk 0:04:38.9]} 30. Qa8 {[%clk 0:08:19.2]} 30...
Nh7 {[%clk 0:04:34.2]} 31. a4 {[%clk 0:08:11]} 31... Nf6 {[%clk 0:04:31.2]} 32.
Bb5 {[%clk 0:08:08.4]} 32... Ng4 {[%clk 0:04:19.1]} 33. Qf3 {[%clk 0:08:07.5]}
33... a5 {[%clk 0:04:17.8]} 34. Be8 {[%clk 0:08:07]} 34... f5 {[%clk 0:04:15.2]}
35. Qc3+ {[%clk 0:07:37.5]} 35... e5 {[%clk 0:04:13]} 36. Qc2 {[%clk 0:07:34.9]}
36... Qd4 {[%clk 0:04:05.4]} 37. Qc7+ {[%clk 0:07:03.4]} 37... Kh6 {[%clk
0:04:01.5]} 38. Qc1+ {[%clk 0:07:03.4]} 38... f4 {[%clk 0:03:48.6]} 39. Qc2
{[%clk 0:07:04.4]} 39... fxg3 {[%clk 0:03:21.8]} 40. Qxg6# {[%clk 0:07:03.4]}
1-0